fUST/lending_fUST_20240817
["ID","MTS","AMOUNT","RATE_DAILY","PERIOD"]
[335122141,1723873838681,-408.0,0.00039294,2]
[335122142,1723873838691,-153.0,0.00039294,2]
[335122143,1723873838701,-153.0,0.00039294,2]
[335122144,1723873838711,-153.0,0.00039294,2]
[335122145,1723873838721,-153.0,0.00039294,2]
[335122146,1723873838731,-153.0,0.00039294,2]
[335122147,1723873838740,-153.0,0.00039294,2]
[335122148,1723873838753,-153.0,0.00039294,2]
[335122149,1723873838763,-153.0,0.00039294,2]
[335122150,1723873838772,-153.0,0.00039294,2]
[335122151,1723873838784,-153.0,0.00039294,2]
[335122152,1723873838795,-153.0,0.00039294,2]
[335122153,1723873838807,-153.0,0.00039294,2]
[335122154,1723873838816,-10545.84284836,0.0003978,2]
[335122155,1723873838829,-555.6,0.0003986,3]
[335122156,1723873838840,-500.0,0.00039869,31]
[335122157,1723873838852,-334.54449043,0.00039869,31]
[335122158,1723873838864,-500.0,0.00039869,31]
[335122159,1723873838873,-500.0,0.00039869,31]
[335122160,1723873838883,-367.58902742,0.00039869,31]
[335122161,1723873838892,-500.0,0.00039869,31]
[335122162,1723873838901,-500.0,0.00039869,31]
[335122163,1723873838912,-500.0,0.00039869,31]
[335122164,1723873838921,-500.0,0.00039869,31]
[335122165,1723873838931,-500.0,0.00039869,31]
[335122166,1723873838942,-500.0,0.00039869,31]
[335122167,1723873838952,-500.0,0.00039869,31]
[335122168,1723873838962,-500.0,0.00039869,31]
[335122169,1723873838971,-500.0,0.00039869,31]
[335122170,1723873838983,-500.0,0.00039869,31]
[335122171,1723873838994,-436.08215157,0.00039869,31]
[335122172,1723873839003,-500.0,0.00039869,31]
[335122173,1723873839014,-131922.801271,0.0003987,5]
[335122174,1723873839096,-100144.15624481,0.0003988,120]
[335122175,1723873839105,-150.0,0.000399,30]
[335122176,1723873839114,-951901.3883883,0.000399,5]
[335122178,1723873841856,-293.19874,0.0003986,3]
[335122179,1723873841870,-799.42126,0.0003986,3]
[335122180,1723873841881,-1674.28140177,0.000399,5]
[335122181,1723873841893,-584713.44943496,0.000399,5]
[335122213,1723873842916,-3571.52103196,0.000399,5]
[335122986,1723874835129,-160.25653991,0.00012989,2]
[335122987,1723874835153,-234.74462865,0.00012991,2]
[335122988,1723874835176,-154.66746495,0.00012999,2]
[335122989,1723874835200,-191.39106627,0.00012999,2]
[335122990,1723874835224,-196.6521776,0.00012999,2]
[335122991,1723874835249,-540.29438569,0.00013477,2]
[335122992,1723874835275,-228.31454664,0.00014245,2]
[335122993,1723874835298,-882.94942718,0.00014245,2]
[335122994,1723874835322,-377.11362429,0.00014245,2]
[335122995,1723874845208,-212.83039811,0.00014245,2]
[335122996,1723874845229,-933.43837954,0.00014245,2]
[335122997,1723874845250,-154.68290005,0.00014519,2]
[335122998,1723874845271,-330.05343314,0.00014519,2]
[335122999,1723874845294,-151.0,0.0003,120]
[335123000,1723874845317,-165.2116078,0.00030466,2]
[335123001,1723874845339,-1127.99262473,0.00032214,2]
[335123002,1723874854157,-628.13680692,0.00032214,2]
[335123003,1723874885457,273.37336231,9.9e-05,2]
[335124995,1723874961120,-201.73149763,0.00014519,2]
[335124996,1723874961143,-9251.26557015,0.00032214,2]
[335124997,1723874961164,-151.0,0.0003274,120]
[335124998,1723874961186,-151.0,0.00035479,120]
[335125000,1723874961206,-500.0,0.00037046,2]
[335125002,1723874961230,-3000.0,0.000373,31]
[335125179,1723874967107,-500.0,0.00037499,17]
[335125180,1723874967129,-500.0,0.00037499,17]
[335125182,1723874967151,-500.0,0.00037499,17]
[335125184,1723874967173,-500.0,0.00037773,17]
[335125185,1723874967195,-500.0,0.00037773,17]
[335125187,1723874967216,-500.0,0.00037773,17]
[335125189,1723874967243,-500.0,0.00038046,2]
[335125190,1723874967263,-500.0,0.00038047,17]
[335125192,1723874967286,-500.0,0.00038047,17]
[335125194,1723874967309,-500.0,0.00038047,17]
[335125195,1723874967333,-10906.01617901,0.00038199,2]
[335125197,1723874967356,-500.0,0.00038219,15]
[335125199,1723874967379,-500.0,0.00038219,17]
[335125200,1723874967406,-500.0,0.00038219,17]
[335125202,1723874967431,-500.0,0.00038219,17]
[335125204,1723874967456,-500.0,0.00038219,17]
[335125206,1723874967479,-18687.66,0.00038219,17]
[335125210,1723874967595,-500.0,0.00038219,17]
[335125212,1723874967618,-151.0,0.00038219,120]
[335125213,1723874967644,-1879.04,0.0003822,17]
[335125215,1723874967667,-500.0,0.0003822,17]
[335125217,1723874967688,-500.0,0.0003822,17]
[335125218,1723874967710,-500.0,0.0003822,17]
[335125220,1723874967734,-807.7,0.0003822,17]
[335125222,1723874967759,-500.0,0.0003822,17]
[335125223,1723874967783,-500.0,0.0003822,17]
[335125225,1723874967807,-500.0,0.0003822,17]
[335125227,1723874967831,-500.0,0.0003822,17]
[335125228,1723874967854,-500.0,0.0003822,17]
[335125230,1723874967876,-2299.83,0.0003822,17]
[335125232,1723874967898,-3031.98,0.0003822,17]
[335125233,1723874967921,-500.0,0.0003822,17]
[335125235,1723874967944,-2913.52,0.0003822,17]
[335125237,1723874967967,-500.0,0.0003822,17]
[335125238,1723874967991,-6326.13,0.0003822,17]
[335125240,1723874968013,-500.0,0.0003822,17]
[335125242,1723874968034,-3578.55,0.0003822,17]
[335125243,1723874968056,-500.0,0.0003822,17]
[335125245,1723874968078,-10906.016179,0.00038224,2]
[335125247,1723874968099,-8796.93151911,0.00038249,2]
[335125513,1723874977230,214.75801558,0.00012,2]
[335126265,1723875005319,273.37336231,9.9e-05,2]
[335126445,1723875013912,342.47979758,0.00012,2]
[335126611,1723875020968,218.02726462,9.9e-05,2]
[335126867,1723875031991,-258.18004786,0.00038189,2]
[335126868,1723875032004,-2481.48940487,0.00038189,2]
[335126869,1723875032013,-434.57678813,0.00038219,17]
[335126870,1723875032025,-339.46321187,0.00038219,17]
[335126872,1723875032034,-1800.75,0.00038219,17]
[335126874,1723875032044,-500.0,0.00038219,17]
[335126876,1723875032053,-500.0,0.00038219,17]
[335126877,1723875032063,-500.0,0.00038219,17]
[335126878,1723875032072,-500.0,0.00038219,17]
[335126879,1723875032082,-2204.01,0.00038219,17]
[335126880,1723875032092,-1136.99,0.00038219,17]
[335126881,1723875032102,-500.0,0.00038219,2]
[335126884,1723875032206,-500.0,0.00038219,17]
[335126885,1723875032216,-3350.18678813,0.00038219,17]
[335126886,1723875032228,-2712.35321187,0.00038219,17]
[335126887,1723875032238,-550.14336366,0.00038219,17]
[335126889,1723875032247,-500.0,0.0003822,17]
[335126890,1723875032257,-500.0,0.0003822,17]
[335126891,1723875032267,-500.0,0.0003822,17]
[335126892,1723875032278,-257.77528136,0.0003822,17]
[335126893,1723875032291,-242.22471864,0.0003822,17]
[335126895,1723875032301,-500.0,0.0003822,17]
[335126896,1723875032311,-500.0,0.0003822,17]
[335126897,1723875032321,-500.0,0.0003822,17]
[335126898,1723875032331,-500.0,0.0003822,17]
[335126899,1723875032340,-938.08,0.0003822,17]
[335126901,1723875032350,-500.0,0.0003822,17]
[335126902,1723875032361,-500.0,0.0003822,17]
[335126903,1723875032370,-2109.08465989,0.00038249,2]
[335126904,1723875032380,-68.71421246,0.00038273,2]
[335126906,1723875032425,442.42488791,0.00012,2]
[335127040,1723875038123,-500.0,0.00038219,17]
[335127041,1723875038135,-3429.45,0.00038219,17]
[335127042,1723875038145,-500.0,0.0003822,17]
[335127043,1723875038155,-500.0,0.0003822,17]
[335127045,1723875038168,-10837.30196654,0.00038273,2]
[335127046,1723875038179,-501.56,0.0003828,3]
[335127047,1723875038191,-250.78,0.0003828,3]
[335127048,1723875038202,-752.35,0.0003828,3]
[335127050,1723875038212,-500.0,0.00038288,17]
[335127051,1723875038223,-500.0,0.00038289,15]
[335127052,1723875038235,-334.54449043,0.00038289,15]
[335127053,1723875038246,-367.58902742,0.00038289,15]
[335127055,1723875038256,-500.0,0.00038289,15]
[335127056,1723875038268,-500.0,0.00038289,15]
[335127057,1723875038282,-500.0,0.00038289,15]
[335127059,1723875038292,-500.0,0.00038289,15]
[335127060,1723875038303,-500.0,0.00038289,15]
[335127061,1723875038313,-500.0,0.00038289,15]
[335127062,1723875038325,-500.0,0.00038289,15]
[335127064,1723875038337,-500.0,0.00038289,15]
[335127065,1723875038347,-500.0,0.00038289,15]
[335127066,1723875038362,-500.0,0.00038289,15]
[335127068,1723875038373,-500.0,0.00038289,15]
[335127069,1723875038383,-500.0,0.00038289,15]
[335127070,1723875038393,-476.1632692,0.00038289,15]
[335127071,1723875038404,-6062.54,0.00038289,17]
[335127073,1723875038415,-6062.54,0.00038289,17]
[335127074,1723875038425,-1003.11,0.0003829,3]
[335127075,1723875038436,-141788.467544,0.0003829,4]
[335127076,1723875038446,-10906.016179,0.00038298,2]
[335127078,1723875038456,-6062.54,0.00038299,17]
[335127079,1723875038467,-6062.54,0.00038299,17]
[335127080,1723875038478,-79390.65168218,0.000383,14]
[335127081,1723875038489,-160.205686,0.000383,5]
[335127083,1723875038499,-6062.54,0.00038303,17]
[335127084,1723875038510,-200.0,0.00038373,5]
[335127085,1723875038520,-124691.45779047,0.00038378,4]
[335127092,1723875038759,-17097.00975353,0.00038378,4]
[335127093,1723875038768,-70894.2337722,0.00038379,4]
[335127094,1723875038779,-6062.54,0.00038387,17]
[335127095,1723875038788,-6062.54,0.00038387,17]
[335127097,1723875038798,-6062.54,0.00038388,17]
[335127098,1723875038809,-6062.54,0.00038388,17]
[335127099,1723875038819,-6062.54,0.00038397,17]
[335127100,1723875038830,-6062.54,0.00038397,17]
[335127102,1723875038841,-500.0,0.00038398,17]
[335127103,1723875038851,-500.0,0.00038398,17]
[335127104,1723875038862,-500.0,0.00038398,17]
[335127105,1723875038873,-500.0,0.00038398,17]
[335127107,1723875038884,-500.0,0.00038398,17]
[335127108,1723875038894,-500.0,0.00038398,17]
[335127109,1723875038906,-500.0,0.00038398,17]
[335127110,1723875038917,-500.0,0.00038398,17]
[335127112,1723875038927,-500.0,0.00038398,17]
[335127113,1723875038938,-500.0,0.00038398,17]
[335127114,1723875038950,-500.0,0.00038398,17]
[335127115,1723875038960,-500.0,0.00038398,17]
[335127117,1723875038969,-500.0,0.00038398,17]
[335127118,1723875038979,-500.0,0.00038398,17]
[335127119,1723875038988,-509.558402,0.00038398,17]
[335127120,1723875038997,-500.0,0.00038398,17]
[335127122,1723875039007,-503.24011896,0.00038398,17]
[335127123,1723875039017,-517.75727027,0.00038398,17]
[335127124,1723875039027,-500.0,0.00038398,17]
[335127125,1723875039036,-500.0,0.00038398,17]
[335127127,1723875039045,-500.0,0.00038398,17]
[335127128,1723875039054,-500.0,0.00038398,17]
[335127129,1723875039064,-500.0,0.00038398,17]
[335127130,1723875039073,-500.0,0.00038398,17]
[335127132,1723875039082,-500.0,0.00038398,17]
[335127133,1723875039091,-500.0,0.00038398,17]
[335127134,1723875039101,-500.0,0.00038398,17]
[335127137,1723875039178,-500.0,0.00038398,17]
[335127139,1723875039205,-500.0,0.00038398,17]
[335127140,1723875039215,-500.0,0.00038398,17]
[335127141,1723875039224,-500.0,0.00038398,17]
[335127142,1723875039234,-500.0,0.00038398,17]
[335127144,1723875039244,-500.0,0.00038398,17]
[335127145,1723875039256,-1924.14,0.00038398,17]
[335127146,1723875039266,-505.93705063,0.00038398,17]
[335127147,1723875039276,-510.63002762,0.00038398,17]
[335127149,1723875039290,-202.54008982,0.00038398,17]
[335127150,1723875039300,-500.0,0.00038398,17]
[335127151,1723875039309,-500.0,0.00038398,17]
[335127152,1723875039322,-510.52552783,0.00038398,17]
[335127154,1723875039332,-621.98,0.00038398,17]
[335127155,1723875039341,-500.0,0.00038398,17]
[335127156,1723875039353,-500.0,0.00038398,17]
[335127157,1723875039364,-500.0,0.00038398,17]
[335127159,1723875039375,-500.0,0.00038398,17]
[335127160,1723875039386,-201.55219623,0.00038398,7]
[335127161,1723875039396,-500.0,0.00038398,17]
[335127162,1723875039406,-500.0,0.00038398,17]
[335127164,1723875039416,-500.0,0.00038398,17]
[335127165,1723875039425,-500.0,0.00038398,17]
[335127166,1723875039436,-500.0,0.00038398,17]
[335127167,1723875039446,-500.0,0.00038398,17]
[335127169,1723875039456,-500.0,0.00038398,17]
[335127170,1723875039467,-500.0,0.00038398,17]
[335127171,1723875039478,-500.0,0.00038398,17]
[335127172,1723875039489,-500.0,0.00038398,17]
[335127174,1723875039501,-500.0,0.00038398,17]
[335127175,1723875039511,-500.0,0.00038398,17]
[335127176,1723875039521,-500.0,0.00038398,17]
[335127177,1723875039531,-507.59688297,0.00038398,17]
[335127179,1723875039542,-500.0,0.00038398,17]
[335127180,1723875039554,-500.0,0.00038398,17]
[335127181,1723875039564,-645.44374883,0.00038398,17]
[335127183,1723875039575,-445.26600915,0.00038398,17]
[335127184,1723875039587,-500.0,0.00038398,17]
[335127185,1723875039598,-500.0,0.00038398,17]
[335127186,1723875039608,-500.0,0.00038398,17]
[335127188,1723875039620,-509.80356931,0.00038398,17]
[335127189,1723875039629,-510.71043627,0.00038398,17]
[335127191,1723875039639,-500.0,0.00038398,17]
[335127192,1723875039649,-500.0,0.00038398,17]
[335127195,1723875039659,-500.0,0.00038398,17]
[335127197,1723875039670,-500.0,0.00038398,17]
[335127198,1723875039679,-500.0,0.00038398,17]
[335127200,1723875039689,-500.0,0.00038398,17]
[335127203,1723875039699,-500.0,0.00038398,17]
[335127204,1723875039708,-502.53087475,0.00038398,17]
[335127206,1723875039719,-501.96498174,0.00038398,17]
[335127208,1723875039729,-500.0,0.00038398,17]
[335127210,1723875039739,-500.0,0.00038398,17]
[335127212,1723875039750,-500.0,0.00038398,17]
[335127214,1723875039761,-500.0,0.00038398,17]
[335127216,1723875039772,-500.0,0.00038398,17]
[335127218,1723875039782,-500.0,0.00038398,17]
[335127220,1723875039792,-501.30570699,0.00038398,17]
[335127222,1723875039801,-500.0,0.00038398,17]
[335127223,1723875039812,-500.0,0.00038398,17]
[335127224,1723875039822,-500.0,0.00038398,17]
[335127226,1723875039832,-500.0,0.00038398,17]
[335127227,1723875039842,-500.0,0.00038398,17]
[335127228,1723875039852,-503.01693281,0.00038398,17]
[335127230,1723875039862,-1620.89,0.00038398,17]
[335127232,1723875039872,-500.0,0.00038398,17]
[335127233,1723875039882,-500.0,0.00038398,17]
[335127234,1723875039894,-500.0,0.00038398,17]
[335127235,1723875039906,-506.01512233,0.00038398,17]
[335127237,1723875039918,-510.52476547,0.00038398,17]
[335127238,1723875039928,-500.0,0.00038398,17]
[335127239,1723875039939,-500.0,0.00038398,17]
[335127240,1723875039951,-500.0,0.00038398,17]
[335127242,1723875039962,-500.0,0.00038398,17]
[335127243,1723875039972,-500.0,0.00038398,17]
[335127244,1723875039982,-500.0,0.00038398,17]
[335127245,1723875039994,-500.0,0.00038398,17]
[335127247,1723875040006,-491.73386325,0.00038398,17]
[335127248,1723875040018,-500.0,0.00038398,17]
[335127249,1723875040028,-500.0,0.00038398,17]
[335127250,1723875040039,-4847.19,0.00038398,17]
[335127252,1723875040049,-500.0,0.00038398,17]
[335127253,1723875040061,-500.0,0.00038398,17]
[335127254,1723875040071,-500.0,0.00038398,17]
[335127256,1723875040082,-1493.75,0.00038398,17]
[335127257,1723875040092,-500.0,0.00038398,17]
[335127258,1723875040102,-500.0,0.00038398,17]
[335127259,1723875040111,-500.0,0.00038398,17]
[335127260,1723875040121,-500.0,0.00038398,17]
[335127262,1723875040131,-500.0,0.00038398,17]
[335127263,1723875040140,-500.0,0.00038398,17]
[335127264,1723875040150,-500.0,0.00038398,17]
[335127265,1723875040160,-500.0,0.00038398,17]
[335127267,1723875040170,-457.09864675,0.00038398,17]
[335127268,1723875040181,-500.0,0.00038398,17]
[335127269,1723875040191,-500.0,0.00038398,17]
[335127270,1723875040203,-500.0,0.00038398,17]
[335127272,1723875040214,-500.0,0.00038398,17]
[335127273,1723875040226,-501.00578619,0.00038398,17]
[335127274,1723875040238,-500.0,0.00038398,17]
[335127275,1723875040248,-500.0,0.00038398,17]
[335127277,1723875040258,-500.0,0.00038398,17]
[335127278,1723875040269,-500.0,0.00038398,17]
[335127279,1723875040281,-500.0,0.00038398,17]
[335127280,1723875040292,-500.0,0.00038398,17]
[335127282,1723875040304,-524.14861121,0.00038398,17]
[335127283,1723875040315,-500.0,0.00038398,17]
[335127284,1723875040328,-500.0,0.00038398,17]
[335127286,1723875040338,-501.7235283,0.00038398,17]
[335127287,1723875040348,-500.0,0.00038398,17]
[335127288,1723875040360,-574.05,0.00038398,17]
[335127289,1723875040374,-507.69756563,0.00038398,17]
[335127291,1723875040386,-500.0,0.00038398,17]
[335127292,1723875040398,-500.0,0.00038398,17]
[335127293,1723875040410,-505.31051538,0.00038398,17]
[335127294,1723875040421,-500.0,0.00038398,17]
[335127296,1723875040433,-500.0,0.00038398,17]
[335127297,1723875040445,-500.0,0.00038398,17]
[335127298,1723875040456,-500.0,0.00038398,17]
[335127300,1723875040468,-500.0,0.00038398,17]
[335127301,1723875040479,-500.0,0.00038398,17]
[335127302,1723875040490,-505.51,0.00038398,17]
[335127303,1723875040501,-502.55610178,0.00038398,17]
[335127305,1723875040512,-500.0,0.00038398,17]
[335127306,1723875040523,-541.16919352,0.00038398,17]
[335127307,1723875040534,-501.70532352,0.00038398,17]
[335127308,1723875040547,-500.0,0.00038398,17]
[335127309,1723875040558,-1280.6,0.00038398,17]
[335127311,1723875040569,-500.0,0.00038398,7]
[335127312,1723875040579,-500.0,0.00038398,17]
[335127315,1723875040661,-500.0,0.00038398,17]
[335127316,1723875040670,-500.0,0.00038398,17]
[335127317,1723875040682,-500.0,0.00038398,17]
[335127319,1723875040693,-500.0,0.00038398,17]
[335127320,1723875040704,-500.0,0.00038398,17]
[335127321,1723875040714,-500.0,0.00038398,17]
[335127322,1723875040724,-213.08403573,0.00038398,17]
[335127324,1723875040735,-500.0,0.00038398,17]
[335127325,1723875040747,-500.0,0.00038398,17]
[335127326,1723875040756,-500.0,0.00038398,17]
[335127327,1723875040767,-500.0,0.00038398,17]
[335127329,1723875040779,-500.0,0.00038398,17]
[335127330,1723875040790,-500.0,0.00038398,17]
[335127331,1723875040800,-500.0,0.00038398,17]
[335127332,1723875040811,-500.0,0.00038398,17]
[335127334,1723875040820,-500.0,0.00038398,17]
[335127335,1723875040831,-500.0,0.00038398,17]
[335127336,1723875040841,-500.0,0.00038398,17]
[335127337,1723875040851,-500.0,0.00038398,17]
[335127338,1723875040861,-500.0,0.00038398,17]
[335127340,1723875040871,-500.0,0.00038398,17]
[335127341,1723875040881,-500.0,0.00038398,17]
[335127342,1723875040891,-500.0,0.00038398,17]
[335127343,1723875040900,-500.0,0.00038398,17]
[335127345,1723875040911,-500.0,0.00038398,17]
[335127346,1723875040923,-527.84618629,0.00038398,17]
[335127347,1723875040935,-500.0,0.00038398,17]
[335127348,1723875040948,-500.0,0.00038398,17]
[335127350,1723875040959,-500.0,0.00038398,17]
[335127351,1723875040970,-380.9962066,0.00038398,17]
[335127352,1723875040980,-500.0,0.00038398,17]
[335127353,1723875040990,-500.0,0.00038398,17]
[335127355,1723875041001,-500.0,0.00038398,17]
[335127356,1723875041010,-504.86989305,0.00038398,17]
[335127357,1723875041019,-502.20394748,0.00038398,17]
[335127358,1723875041030,-500.0,0.00038398,17]
[335127359,1723875041040,-500.0,0.00038398,17]
[335127361,1723875041051,-500.0,0.00038398,17]
[335127362,1723875041061,-500.78621081,0.00038398,17]
[335127363,1723875041073,-500.0,0.00038398,17]
[335127364,1723875041082,-500.0,0.00038398,17]
[335127366,1723875041092,-500.88110826,0.00038398,17]
[335127367,1723875041101,-500.0,0.00038398,17]
[335127368,1723875041111,-500.0,0.00038398,17]
[335127369,1723875041121,-500.0,0.00038398,17]
[335127371,1723875041132,-500.0,0.00038398,17]
[335127372,1723875041142,-500.0,0.00038398,17]
[335127373,1723875041152,-500.0,0.00038398,17]
[335127374,1723875041161,-500.0,0.00038398,17]
[335127375,1723875041171,-500.0,0.00038398,17]
[335127377,1723875041181,-518.60817667,0.00038398,17]
[335127378,1723875041190,-500.0,0.00038398,17]
[335127379,1723875041200,-500.0,0.00038398,17]
[335127380,1723875041210,-500.0,0.00038398,17]
[335127382,1723875041221,-500.0,0.00038398,17]
[335127383,1723875041231,-500.0,0.00038398,17]
[335127384,1723875041241,-1903.0,0.00038398,17]
[335127385,1723875041252,-500.0,0.00038398,17]
[335127387,1723875041262,-502.85140263,0.00038398,17]
[335127388,1723875041275,-500.0,0.00038398,17]
[335127389,1723875041293,-500.0,0.00038398,17]
[335127391,1723875041303,-502.48382303,0.00038398,17]
[335127392,1723875041314,-500.0,0.00038398,17]
[335127393,1723875041326,-502.75343832,0.00038398,17]
[335127394,1723875041337,-500.0,0.00038398,17]
[335127396,1723875041349,-500.0,0.00038398,17]
[335127397,1723875041361,-500.0,0.00038398,17]
[335127398,1723875041373,-500.0,0.00038398,17]
[335127399,1723875041383,-500.0,0.00038398,17]
[335127401,1723875041395,-626.4652872,0.00038398,17]
[335127402,1723875041406,-500.0,0.00038398,17]
[335127403,1723875041417,-500.0,0.00038398,2]
[335127404,1723875041427,-500.0,0.00038398,17]
[335127405,1723875041440,-500.0,0.00038398,17]
[335127407,1723875041450,-158.27625212,0.00038398,17]
[335127408,1723875041460,-501.7248077,0.00038398,17]
[335127409,1723875041470,-563.37795924,0.00038398,17]
[335127410,1723875041483,-500.0,0.00038398,17]
[335127412,1723875041495,-500.0,0.00038398,17]
[335127413,1723875041504,-500.0,0.00038398,17]
[335127414,1723875041514,-635.85,0.00038398,17]
[335127416,1723875041525,-500.0,0.00038398,17]
[335127417,1723875041536,-476.15553232,0.00038398,17]
[335127418,1723875041546,-527.28882741,0.00038398,17]
[335127419,1723875041557,-500.0,0.00038398,17]
[335127421,1723875041568,-500.0,0.00038398,17]
[335127422,1723875041580,-500.0,0.00038398,17]
[335127423,1723875041591,-2245.86,0.00038398,17]
[335127424,1723875041605,-500.0,0.00038398,17]
[335127426,1723875041617,-500.0,0.00038398,17]
[335127427,1723875041630,-500.0,0.00038398,17]
[335127428,1723875041640,-500.0,0.00038398,17]
[335127429,1723875041649,-500.0,0.00038398,17]
[335127431,1723875041659,-500.0,0.00038398,17]
[335127432,1723875041669,-500.0,0.00038398,17]
[335127433,1723875041679,-500.0,0.00038398,17]
[335127434,1723875041688,-500.0,0.00038398,17]
[335127436,1723875041698,-500.0,0.00038398,17]
[335127437,1723875041708,-500.0,0.00038398,17]
[335127438,1723875041719,-507.76683516,0.00038398,17]
[335127439,1723875041730,-500.0,0.00038398,17]
[335127440,1723875041741,-500.0,0.00038398,17]
[335127441,1723875041751,-500.0,0.00038398,17]
[335127442,1723875041760,-3892.19,0.00038398,17]
[335127443,1723875041769,-500.0,0.00038398,17]
[335127444,1723875041778,-271.81427962,0.00038398,17]
[335127445,1723875041788,-510.01034214,0.00038398,17]
[335127446,1723875041797,-500.0,0.00038398,17]
[335127447,1723875041807,-502.58171897,0.00038398,17]
[335127448,1723875041817,-500.0,0.00038398,17]
[335127449,1723875041827,-500.0,0.00038398,17]
[335127450,1723875041839,-500.0,0.00038398,17]
[335127451,1723875041849,-500.0,0.00038398,17]
[335127452,1723875041860,-500.0,0.00038398,17]
[335127453,1723875041870,-500.0,0.00038398,17]
[335127454,1723875041880,-500.0,0.00038398,17]
[335127456,1723875041889,-500.0,0.00038398,17]
[335127457,1723875041898,-500.0,0.00038398,17]
[335127458,1723875041908,-634.93191752,0.00038398,17]
[335127461,1723875041984,-500.56085617,0.00038398,17]
[335127462,1723875041994,-500.0,0.00038398,17]
[335127463,1723875042004,-500.0,0.00038398,17]
[335127465,1723875042013,-500.0,0.00038398,17]
[335127466,1723875042023,-500.0,0.00038398,17]
[335127467,1723875042033,-500.0,0.00038398,17]
[335127468,1723875042043,-500.0,0.00038398,17]
[335127469,1723875042055,-516.97030484,0.00038398,17]
[335127471,1723875042065,-616.98,0.00038398,17]
[335127472,1723875042075,-500.0,0.00038398,17]
[335127473,1723875042085,-500.0,0.00038398,17]
[335127474,1723875042095,-503.64181494,0.00038398,17]
[335127476,1723875042104,-500.0,0.00038398,17]
[335127477,1723875042114,-500.0,0.00038398,17]
[335127478,1723875042123,-500.0,0.00038398,17]
[335127479,1723875042133,-500.0,0.00038398,17]
[335127481,1723875042143,-500.0,0.00038398,17]
[335127482,1723875042153,-500.0,0.00038398,17]
[335127483,1723875042163,-500.0,0.00038398,17]
[335127484,1723875042175,-500.0,0.00038398,17]
[335127486,1723875042186,-500.0,0.00038398,17]
[335127487,1723875042195,-500.0,0.00038398,17]
[335127488,1723875042206,-500.0,0.00038398,17]
[335127489,1723875042217,-500.0,0.00038398,17]
[335127490,1723875042227,-500.0,0.00038398,17]
[335127492,1723875042239,-500.0,0.00038398,17]
[335127493,1723875042250,-501.15872241,0.00038398,17]
[335127494,1723875042260,-500.0,0.00038398,17]
[335127496,1723875042270,-500.0,0.00038398,17]
[335127497,1723875042281,-500.0,0.00038398,17]
[335127498,1723875042293,-500.0,0.00038398,17]
[335127499,1723875042303,-500.0,0.00038398,17]
[335127500,1723875042313,-500.0,0.00038398,17]
[335127502,1723875042325,-500.0,0.00038398,17]
[335127503,1723875042337,-502.42367931,0.00038398,17]
[335127504,1723875042346,-500.0,0.00038398,17]
[335127505,1723875042357,-500.0,0.00038398,17]
[335127507,1723875042368,-500.0,0.00038398,17]
[335127508,1723875042378,-500.0,0.00038398,17]